fUST/lending_fUST_20250419
["ID","MTS","AMOUNT","RATE_DAILY","PERIOD"]
[358395677,1745061245722,1004.346,0.0001801,2]
[358395678,1745061448760,3768.0,0.0001801,2]
[358395697,1745062110803,1407.48517916,0.000176,2]
[358395698,1745062114398,219.2598466,0.00017794,2]
[358395700,1745062125074,3118.65051926,0.000175,4]
[358395744,1745062232193,-250.0,0.00018223,2]
[358395746,1745062232202,-4336.7928544,0.00018271,2]
[358395748,1745062232211,-300.0,0.00018487,2]
[358395750,1745062232220,-300.0,0.00018487,2]
[358395751,1745062232229,-200.0,0.00018488,10]
[358395753,1745062232240,-200.0,0.00018488,10]
[358395755,1745062232249,-200.0,0.00018488,10]
[358395757,1745062232259,-200.0,0.00018488,10]
[358395759,1745062232268,-200.0,0.00018488,10]
[358395763,1745062232277,-200.0,0.00018488,10]
[358395764,1745062232287,-200.0,0.00018488,10]
[358395765,1745062232297,-200.0,0.00018488,10]
[358395766,1745062232306,-200.0,0.00018488,10]
[358395767,1745062232316,-200.0,0.00018488,10]
[358395768,1745062232326,-200.0,0.00018488,10]
[358395769,1745062232336,-200.0,0.00018488,10]
[358395770,1745062232345,-200.0,0.00018488,10]
[358395771,1745062232354,-200.0,0.00018488,10]
[358395773,1745062232364,-200.0,0.00018488,10]
[358395775,1745062232373,-200.0,0.00018488,10]
[358395777,1745062232382,-200.0,0.00018488,10]
[358395779,1745062232392,-200.0,0.00018488,10]
[358395781,1745062232401,-200.0,0.00018488,10]
[358395783,1745062232410,-200.0,0.00018488,10]
[358395785,1745062232419,-200.0,0.00018488,10]
[358395787,1745062232429,-200.0,0.00018488,10]
[358395790,1745062232438,-200.0,0.00018488,10]
[358395793,1745062232458,-200.0,0.00018488,10]
[358395795,1745062232468,-200.0,0.00018488,10]
[358395797,1745062232478,-200.0,0.00018488,10]
[358395799,1745062232488,-200.0,0.00018488,10]
[358395801,1745062232498,-200.0,0.00018488,10]
[358395803,1745062232507,-200.0,0.00018488,10]
[358395805,1745062232517,-200.0,0.00018488,10]
[358395807,1745062232527,-200.0,0.00018488,10]
[358395809,1745062232536,-200.0,0.00018488,10]
[358395811,1745062232546,-200.0,0.00018488,10]
[358395813,1745062232556,-200.0,0.00018488,10]
[358395815,1745062232566,-200.0,0.00018488,10]
[358395816,1745062232576,-200.0,0.00018488,10]
[358395817,1745062232585,-200.0,0.00018488,10]
[358395818,1745062232595,-200.0,0.00018488,10]
[358395819,1745062232604,-200.0,0.00018488,10]
[358395820,1745062232614,-200.0,0.00018488,10]
[358395821,1745062232624,-200.0,0.00018488,10]
[358395822,1745062232634,-200.0,0.00018488,10]
[358395823,1745062232644,-200.0,0.00018488,10]
[358395824,1745062232653,-200.0,0.00018488,10]
[358395825,1745062232663,-200.0,0.00018488,10]
[358395826,1745062232673,-200.0,0.00018488,10]
[358395827,1745062232683,-200.0,0.00018488,10]
[358395828,1745062232695,-200.0,0.00018488,10]
[358395829,1745062232705,-200.0,0.00018488,10]
[358395830,1745062232715,-200.0,0.00018488,10]
[358395831,1745062232725,-200.0,0.00018488,10]
[358395832,1745062232735,-200.0,0.00018488,10]
[358395833,1745062232745,-200.0,0.00018488,10]
[358395834,1745062232755,-200.0,0.00018488,10]
[358395835,1745062232765,-200.0,0.00018488,10]
[358395836,1745062232775,-200.0,0.00018488,10]
[358395837,1745062232785,-200.0,0.00018488,10]
[358395838,1745062232795,-200.0,0.00018488,10]
[358395839,1745062232805,-191.183263,0.00018488,10]
[358395840,1745062232815,-24708.44996589,0.00018488,2]
[358395841,1745062232830,-191.55003411,0.00018488,2]
[358395842,1745062232840,-227.63796229,0.00018554,2]
[358395843,1745062232851,-188.358452,0.00018586,2]
[358395844,1745062232861,-250.0,0.00018654,2]
[358395845,1745062232871,-789.97694465,0.00018654,2]
[358395846,1745062232880,-14467.77145992,0.000189,2]
[358395847,1745062232890,-239.58522419,0.000189,2]
[358395848,1745062232900,-31257.02005948,0.000189,2]
[358395849,1745062232911,-500.0,0.00018902,2]
[358395850,1745062232922,-572.66098266,0.00018902,2]
[358395851,1745062232933,-500.0,0.00018902,2]
[358395852,1745062232943,-500.0,0.00018902,2]
[358395853,1745062232954,-500.0,0.00018902,2]
[358395854,1745062232964,-500.0,0.00018902,2]
[358395855,1745062232974,-500.0,0.00018902,2]
[358395856,1745062232984,-500.0,0.00018902,2]
[358395857,1745062232994,-500.0,0.00018902,2]
[358395858,1745062233004,-500.0,0.00018902,2]
[358395859,1745062233013,-500.0,0.00018902,2]
[358395860,1745062233024,-500.0,0.00018902,2]
[358395861,1745062233034,-500.0,0.00018902,2]
[358395862,1745062233044,-500.0,0.00018902,2]
[358395863,1745062233059,-500.0,0.00018902,2]
[358395864,1745062233070,-500.0,0.00018902,2]
[358395865,1745062233081,-500.0,0.00018902,2]
[358395866,1745062233092,-394.76590128,0.00018902,2]
[358395867,1745062233102,-185.21314303,0.00018903,2]
[358395868,1745062233112,-500.0,0.00018903,2]
[358395869,1745062233123,-428.93462813,0.00018903,2]
[358395870,1745062233133,-547.9820483,0.00018904,2]
[358395871,1745062233144,-152.0,0.00018988,2]
[358395872,1745062233153,-500.0,0.00019,2]
[358395873,1745062233164,-500.0,0.00019,2]
[358395874,1745062233174,-212.07914058,0.00019064,2]
[358395875,1745062233184,-500.0,0.00019178,2]
[358395876,1745062233194,-500.0,0.00019178,2]
[358395877,1745062233204,-192.86520859,0.00019178,2]
[358395878,1745062233214,-151.0,0.00019599,2]
[358395879,1745062233225,-312.7322641,0.00019622,10]
[358395880,1745062233236,-230.3887155,0.00019725,2]
[358395881,1745062233246,-18999.999999,0.0002,2]
[358395882,1745062233256,-151.0,0.0002,2]
[358395883,1745062233267,-151.0,0.0002,2]
[358395884,1745062233277,-212.44484,0.0002,2]
[358395885,1745062233289,-151.0,0.0002,2]
[358395886,1745062233299,-151.0,0.0002,2]
[358395887,1745062233309,-151.0,0.0002,2]
[358395888,1745062233319,-196.468109,0.0002,2]
[358395889,1745062233329,-196.468109,0.0002,2]
[358395890,1745062233340,-151.0,0.0002,2]
[358395891,1745062233350,-248.81739,0.0002,2]
[358395892,1745062233360,-151.0,0.0002,2]
[358395893,1745062233370,-827.610312,0.0002,2]
[358395894,1745062233380,-827.610312,0.0002,2]
[358395895,1745062233389,-151.0,0.0002,2]
[358395896,1745062233399,-420.0,0.0002026,2]
[358395897,1745062233409,-621.49219753,0.0002061,2]
[358395898,1745062233419,-500.0,0.00020822,2]
[358395899,1745062233429,-158.96083578,0.00020932,2]
[358395900,1745062233439,-152.81425118,0.00020968,2]
[358395901,1745062233449,-207.4,0.00020994,2]
[358395902,1745062233459,-156.82,0.00021,2]
[358395903,1745062233469,-266.42705918,0.00021,2]
[358395904,1745062233479,-158.96083578,0.00021205,2]
[358395905,1745062233489,-314.6165971,0.00021205,2]
[358395906,1745062233499,-284.2743,0.00021349,15]
[358395907,1745062233511,-158.96083578,0.00021479,2]
[358395908,1745062233521,-1044.41499959,0.000215,2]
[358395909,1745062233531,-160.0,0.00021734,2]
[358395910,1745062233542,-420.4931809,0.00021734,2]
[358395911,1745062233551,-160.0,0.00021734,2]
[358395912,1745062233562,-158.96083578,0.00021753,2]
[358395913,1745062233571,-839.40992179,0.00021785,2]
[358395914,1745062233582,-27866.3384873,0.000218,2]
[358395928,1745062238315,-1239.08759919,0.000189,3]
[358395943,1745062246405,-2805.34095285,0.000189,3]
[358395944,1745062246415,-5389.49321058,0.000218,2]
[358395945,1745062246462,-14703.77812029,0.000218,2]
[358395946,1745062246474,-16040.39018183,0.000218,2]
[358395947,1745062246483,-212.07914058,0.00021817,2]
[358395948,1745062246493,-402.0,0.0002182,2]
[358395949,1745062246502,-151.0,0.00021898,2]
[358395950,1745062246512,-151.0,0.00021898,2]
[358395951,1745062246521,-151.0,0.00021898,2]
[358395952,1745062246531,-151.0,0.00021898,2]
[358395953,1745062246540,-223.904544,0.00021898,2]
[358395954,1745062246549,-151.0,0.00021898,2]
[358395955,1745062246559,-151.0,0.00021898,2]
[358395956,1745062246569,-151.0,0.00021898,2]
[358395957,1745062246578,-196.468109,0.00021898,2]
[358395958,1745062246588,-196.468109,0.00021898,2]
[358395959,1745062246598,-151.0,0.00021898,2]
[358395960,1745062246607,-151.0,0.00021898,2]
[358395961,1745062246617,-827.610312,0.00021898,2]
[358395962,1745062246627,-827.610312,0.00021898,2]
[358395963,1745062246637,-151.0,0.00021898,2]
[358395964,1745062246647,-151.0,0.00021898,2]
[358395965,1745062246657,-6068.46929159,0.00021898,2]
[358395966,1745062246669,-4123.05137828,0.00021898,2]
[358395967,1745062246681,-14477.62179148,0.00021898,2]
[358395968,1745062246691,-272.37820802,0.00021915,2]
[358395999,1745063432372,-159.72348279,0.00019798,2]
[358396000,1745063432382,-188.3584538,0.00020515,2]
[358396001,1745063432391,-3000.0,0.000208,2]
[358396003,1745063432401,-300.0,0.00020801,2]
[358396005,1745063432410,-11.18974778,0.00020802,2]
[358396006,1745063432422,-23545.1850685,0.00020802,2]
[358396009,1745063432438,-9.49287152,0.00020802,2]
[358396010,1745063432448,-432.75176681,0.00021199,2]
[358396011,1745063432458,-500.0,0.00021199,2]
[358396013,1745063432468,-30000.0,0.000212,2]
[358396014,1745063432478,-1342.47598667,0.00021325,2]
[358396015,1745063432489,-157.0640115,0.000214,2]
[358396016,1745063432499,-158.96083579,0.00021425,2]
[358396017,1745063432508,-156.83,0.00021425,2]
[358396019,1745063432518,-160.0,0.00021761,2]
[358396020,1745063432527,-839.40992179,0.00021761,2]
[358396021,1745063432537,-4000.0,0.000218,2]
[358396022,1745063432546,-207.4,0.00021804,2]
[358396024,1745063432555,-5077.86965569,0.00021814,2]
[358396026,1745063432566,-4258.80477583,0.00021814,2]
[358396027,1745063432577,-500.0,0.00021816,2]
[358396029,1745063432586,-650.2542397,0.00021816,2]
[358396031,1745063432608,-335.00564601,0.00021816,2]
[358396033,1745063432619,-96687.43309328,0.00021817,2]
[358396053,1745063438639,-811.51982112,0.00021817,2]
[358396054,1745063438653,-9795.93120354,0.00021817,2]
[358396055,1745063438665,-151.0,0.00021817,2]
[358396056,1745063438675,-151.0,0.00021817,2]
[358396057,1745063438685,-151.0,0.00021817,2]
[358396058,1745063438696,-151.0,0.00021817,2]
[358396059,1745063438706,-157.174487,0.00021817,2]
[358396060,1745063438716,-151.0,0.00021817,2]
[358396061,1745063438726,-157.174487,0.00021817,2]
[358396062,1745063438736,-151.0,0.00021817,2]
[358396063,1745063438746,-402.0,0.0002182,2]
[358396064,1745063438756,-500.0,0.000219,120]
[358396065,1745063438765,-2077.04128533,0.000219,3]
[358396066,1745063438775,-3850.76244158,0.00021915,2]
[358396067,1745063438785,-10019.04889781,0.00021917,2]
[358396068,1745063438795,-2022.21427602,0.00021917,3]
[358396069,1745063438805,-500.0,0.00021917,2]
[358396070,1745063438815,-500.0,0.00021917,2]
[358396071,1745063438825,-500.0,0.00021917,2]
[358396072,1745063438834,-500.0,0.00021917,2]
[358396073,1745063438844,-631.47857603,0.00021917,2]
[358396074,1745063438853,-500.0,0.00021917,2]
[358396075,1745063438863,-500.0,0.00021917,2]
[358396076,1745063438872,-500.0,0.00021917,2]
[358396077,1745063438882,-500.0,0.00021917,2]
[358396078,1745063438902,-500.0,0.00021917,2]
[358396079,1745063438913,-500.0,0.00021917,2]
[358396080,1745063438924,-500.0,0.00021917,2]
[358396081,1745063438934,-500.0,0.00021917,2]
[358396082,1745063438944,-500.0,0.00021917,2]
[358396083,1745063438954,-500.0,0.00021917,2]
[358396084,1745063438965,-500.0,0.00021917,2]
[358396085,1745063438975,-500.0,0.00021917,2]
[358396086,1745063438986,-500.0,0.00021917,2]
[358396087,1745063438997,-500.0,0.00021917,2]
[358396088,1745063439008,-500.0,0.00021917,2]
[358396089,1745063439019,-500.0,0.00021917,2]
[358396090,1745063439029,-500.0,0.00021917,2]
[358396091,1745063439040,-500.0,0.00021917,2]
[358396092,1745063439050,-500.0,0.00021917,2]
[358396093,1745063439060,-500.0,0.00021917,2]
[358396094,1745063439071,-525.33668489,0.00021917,2]
[358396095,1745063439081,-500.0,0.00021917,2]
[358396096,1745063439091,-276.54332032,0.00021917,2]
[358396103,1745063443488,-672.36667968,0.00021917,2]
[358396104,1745063443498,-500.0,0.00021917,2]
[358396105,1745063443508,-500.0,0.00021917,2]
[358396106,1745063443518,-500.0,0.00021917,2]
[358396107,1745063443528,-500.0,0.00021917,2]
[358396108,1745063443539,-500.0,0.00021917,2]
[358396109,1745063443548,-500.0,0.00021917,2]
[358396110,1745063443558,-500.0,0.00021917,2]
[358396111,1745063443568,-500.0,0.00021917,2]
[358396112,1745063443578,-500.0,0.00021917,2]
[358396113,1745063443588,-500.0,0.00021917,2]
[358396114,1745063443599,-503.62732216,0.00021917,2]
[358396115,1745063443609,-453.34529868,0.00021917,2]
[358396116,1745063443633,-124.06709477,0.00021917,2]
[358396117,1745063443644,-500.0,0.00021917,2]
[358396118,1745063443654,-500.0,0.00021917,2]
[358396119,1745063443664,-500.0,0.00021917,2]
[358396120,1745063443674,-355.00430679,0.00021917,2]
[358396121,1745063443686,-144.99569321,0.00021917,2]
[358396122,1745063443696,-457.16598701,0.00021917,2]
[358396136,1745063446815,-42.83401299,0.00021917,2]
[358396137,1745063446826,-500.0,0.00021917,2]
[358396138,1745063446836,-482.11598701,0.00021917,2]
[358396139,1745063446848,-17.88401299,0.00021917,2]
[358396140,1745063446857,-500.0,0.00021917,2]
[358396141,1745063446867,-500.0,0.00021917,2]
[358396142,1745063446876,-500.0,0.00021917,2]
[358396143,1745063446886,-500.0,0.00021917,2]
[358396144,1745063446895,-500.0,0.00021917,2]
[358396145,1745063446905,-710.6,0.00021917,2]
[358396146,1745063446914,-616.51835324,0.00021917,2]
[358396147,1745063446924,-500.0,0.00021917,2]
[358396148,1745063446933,-500.0,0.00021917,2]
[358396149,1745063446944,-245.90436383,0.00021917,2]
[358396150,1745063446954,-500.0,0.00021917,2]
[358396151,1745063446964,-501.82098392,0.00021917,2]
[358396152,1745063446975,-501.38459834,0.00021917,2]
[358396153,1745063446985,-500.0,0.00021917,2]
[358396154,1745063446994,-494.94913083,0.00021917,2]
[358396155,1745063447005,-500.0,0.00021917,2]
[358396156,1745063447014,-500.0,0.00021917,2]
[358396157,1745063447024,-152.081775,0.00021917,2]
[358396158,1745063447034,-500.0,0.00021917,2]
[358396159,1745063447043,-500.0,0.00021917,2]
[358396160,1745063447053,-500.0,0.00021917,2]
[358396161,1745063447063,-500.0,0.00021917,2]
[358396162,1745063447073,-582.87,0.00021917,2]
[358396163,1745063447084,-500.0,0.00021917,2]
[358396164,1745063447095,-502.27039875,0.00021917,2]
[358396165,1745063447106,-500.0,0.00021917,2]
[358396166,1745063447115,-500.0,0.00021917,2]
[358396167,1745063447126,-500.0,0.00021917,2]
[358396168,1745063447137,-500.0,0.00021917,2]
[358396169,1745063447147,-500.0,0.00021917,2]
[358396170,1745063447157,-385.72783451,0.00021917,2]
[358396188,1745064632523,-332.89239912,0.00019698,2]
[358396189,1745064632577,-127.26369565,0.00019698,2]
[358396190,1745064632586,-1047.0361795,0.00020441,2]
[358396191,1745064632595,-574.6320704,0.00020634,2]
[358396192,1745064632604,-229.162277,0.00020758,2]
[358396193,1745064632613,-361.3987948,0.00020833,2]
[358396194,1745064632622,-250.0,0.00020982,2]
[358396195,1745064632631,-311.2198851,0.00021278,2]
[358396196,1745064632640,-300.0,0.00021713,2]
[358396197,1745064632649,-300.0,0.00021713,2]
[358396198,1745064632658,-10521.22178417,0.00021714,2]
[358396199,1745064632667,-1174.66648838,0.0002172,2]
[358396200,1745064632676,-184.71652883,0.0002172,2]
[358396201,1745064632685,-50000.0,0.0002172,2]
[358396202,1745064632695,-500.0,0.00021743,2]
[358396203,1745064632704,-509.24048816,0.00021743,2]
[358396204,1745064632713,-500.0,0.00021743,2]
[358396205,1745064632722,-500.0,0.00021743,2]
[358396206,1745064632732,-500.0,0.00021743,2]
[358396207,1745064632742,-500.0,0.00021743,2]
[358396208,1745064632751,-500.0,0.00021743,2]
[358396209,1745064632761,-500.0,0.00021743,2]
[358396210,1745064632771,-500.0,0.00021743,2]
[358396211,1745064632781,-564.59944462,0.00021743,2]
[358396212,1745064632790,-500.0,0.00021743,2]
[358396213,1745064632799,-500.0,0.00021743,2]
[358396214,1745064632810,-500.0,0.00021743,2]
[358396215,1745064632819,-500.0,0.00021743,2]
[358396216,1745064632829,-500.0,0.00021743,2]
[358396217,1745064632838,-500.0,0.00021743,2]
[358396218,1745064632848,-500.0,0.00021743,2]
[358396219,1745064632858,-500.0,0.00021743,2]
[358396220,1745064632867,-500.0,0.00021743,2]
[358396221,1745064632877,-500.0,0.00021743,2]
[358396222,1745064632887,-500.0,0.00021743,2]
[358396223,1745064632901,-500.0,0.00021743,2]
[358396224,1745064632911,-500.0,0.00021743,2]
[358396225,1745064632920,-500.0,0.00021743,2]
[358396226,1745064632931,-500.0,0.00021743,2]
[358396227,1745064632941,-500.0,0.00021743,2]
[358396228,1745064632951,-500.0,0.00021743,2]
[358396229,1745064632962,-500.0,0.00021743,2]
[358396230,1745064632972,-500.0,0.00021743,2]
[358396231,1745064632982,-500.0,0.00021743,2]
[358396232,1745064632992,-500.0,0.00021743,2]
[358396233,1745064633002,-500.0,0.00021743,2]
[358396234,1745064633011,-500.0,0.00021743,2]
[358396235,1745064633021,-343.62515376,0.00021743,2]
[358396236,1745064633031,-500.0,0.00021743,2]
[358396237,1745064633040,-500.0,0.00021743,2]
[358396238,1745064633051,-500.0,0.00021743,2]
[358396239,1745064633060,-500.0,0.00021743,2]
[358396240,1745064633070,-500.0,0.00021743,2]
[358396241,1745064633080,-500.0,0.00021743,2]
[358396242,1745064633089,-500.0,0.00021743,2]
[358396243,1745064633100,-500.0,0.00021743,2]
[358396244,1745064633110,-500.0,0.00021743,2]
[358396245,1745064633120,-450.0,0.00021743,2]
[358396246,1745064633130,-500.0,0.00021743,2]
[358396247,1745064633139,-500.0,0.00021743,2]
[358396248,1745064633150,-500.0,0.00021743,2]
[358396249,1745064633159,-500.0,0.00021743,2]
[358396250,1745064633169,-500.0,0.00021743,2]
[358396251,1745064633179,-500.0,0.00021743,2]
[358396252,1745064633189,-500.0,0.00021743,2]
[358396253,1745064633199,-184.71652883,0.00021744,2]
[358396254,1745064633209,-184.71652883,0.00021769,2]
[358396255,1745064633219,-184.71652883,0.00021793,2]
[358396256,1745064633227,-184.71652883,0.00021817,2]
[358396257,1745064633236,-550.20729999,0.00021817,2]
[358396258,1745064633246,-584.50395221,0.00021817,2]
[358396259,1745064633256,-156.81,0.00021819,2]
[358396260,1745064633265,-150.659,0.0002182,2]
[358396261,1745064633275,-547.498,0.0002182,2]
[358396262,1745064633284,-707.0,0.0002182,2]
[358396263,1745064633294,-2249.049,0.0002182,2]
[358396264,1745064633304,-402.0,0.0002182,2]
[358396265,1745064633314,-157.0640115,0.000219,2]
[358396266,1745064633323,-2109.08371459,0.000219,3]
[358396267,1745064633333,-249.10555624,0.00021904,2]
[358396268,1745064633343,-151.0,0.00021904,2]
[358396269,1745064633352,-151.0,0.00021904,2]
[358396270,1745064633362,-268.45099498,0.00021904,2]
[358396271,1745064633371,-302.0,0.00021904,2]
[358396272,1745064633381,-207.4,0.00021904,2]
[358396273,1745064633390,-160.0,0.00021909,2]
[358396274,1745064633399,-305.96591465,0.00021909,2]
[358396275,1745064633408,-177.580266,0.00021916,2]
[358396276,1745064633418,-1218.567996,0.00021916,2]
[358396277,1745064633428,-9987.7876103,0.00021917,2]
[358396278,1745064633438,-500.0,0.00021917,2]
[358396279,1745064633448,-502.60022469,0.00021917,2]
[358396280,1745064633457,-500.0,0.00021917,2]
[358396281,1745064633467,-500.0,0.00021917,2]
[358396282,1745064633476,-500.0,0.00021917,2]
[358396283,1745064633485,-500.0,0.00021917,2]
[358396284,1745064633495,-500.0,0.00021917,2]
[358396285,1745064633504,-500.0,0.00021917,2]
[358396286,1745064633514,-499.71213654,0.00021917,2]
[358396287,1745064633523,-627.86072017,0.00021917,2]
[358396288,1745064633533,-544.03386395,0.00021917,2]
[358396289,1745064633543,-500.0,0.00021917,2]
[358396290,1745064633552,-500.0,0.00021917,2]
[358396291,1745064633562,-500.0,0.00021917,2]
[358396292,1745064633571,-500.0,0.00021917,2]
[358396293,1745064633581,-500.0,0.00021917,2]
[358396294,1745064633591,-500.0,0.00021917,2]
[358396295,1745064633600,-500.0,0.00021917,2]
[358396296,1745064633610,-500.0,0.00021917,2]
[358396297,1745064633620,-500.0,0.00021917,2]
[358396298,1745064633630,-500.0,0.00021917,2]
[358396299,1745064633639,-500.0,0.00021917,2]
[358396300,1745064633648,-500.0,0.00021917,2]
[358396301,1745064633657,-500.0,0.00021917,2]
[358396302,1745064633667,-500.0,0.00021917,2]
[358396303,1745064633676,-500.0,0.00021917,2]
[358396304,1745064633686,-500.0,0.00021917,2]
[358396305,1745064633695,-500.0,0.00021917,2]
[358396306,1745064633705,-500.0,0.00021917,2]
[358396307,1745064633715,-500.0,0.00021917,2]
[358396308,1745064633726,-500.0,0.00021917,2]
[358396309,1745064633736,-500.0,0.00021917,2]
[358396310,1745064633745,-500.0,0.00021917,2]
[358396311,1745064633755,-500.0,0.00021917,2]
[358396312,1745064633764,-500.9910037,0.00021917,2]
[358396313,1745064633774,-639.49042075,0.00021917,2]
[358396314,1745064633783,-500.0,0.00021917,2]
[358396315,1745064633793,-500.0,0.00021917,2]
[358396316,1745064633802,-500.0,0.00021917,2]
[358396317,1745064633812,-500.0,0.00021917,2]
[358396318,1745064633821,-500.0,0.00021917,2]
[358396319,1745064633831,-500.0,0.00021917,2]
[358396320,1745064633840,-500.0,0.00021917,2]
[358396321,1745064633850,-500.0,0.00021917,2]
[358396322,1745064633860,-430.97096974,0.00021917,2]
[358396323,1745064633876,-69.02903026,0.00021917,2]
[358396324,1745064633885,-501.93561628,0.00021917,2]
[358396325,1745064633899,-500.0,0.00021917,2]
[358396326,1745064633909,-500.0,0.00021917,2]
[358396327,1745064633919,-500.0,0.00021917,2]
[358396328,1745064633928,-500.0,0.00021917,2]
[358396329,1745064633939,-500.0,0.00021917,2]
[358396330,1745064633950,-500.0,0.00021917,2]
[358396331,1745064633960,-500.0,0.00021917,2]
[358396332,1745064633971,-500.0,0.00021917,2]
[358396333,1745064633981,-500.0,0.00021917,2]
[358396334,1745064633991,-500.0,0.00021917,2]
[358396335,1745064634000,-500.0,0.00021917,2]
[358396336,1745064634009,-500.0,0.00021917,2]
[358396337,1745064634018,-500.0,0.00021917,2]
[358396338,1745064634028,-279.04715497,0.00021917,2]
[358396339,1745064634037,-500.0,0.00021917,2]
[358396340,1745064634046,-500.0,0.00021917,2]
[358396341,1745064634056,-500.0,0.00021917,2]
[358396342,1745064634065,-500.0,0.00021917,2]
[358396343,1745064634074,-500.0,0.00021917,2]
[358396344,1745064634083,-500.0,0.00021917,2]
[358396345,1745064634092,-500.0,0.00021917,2]
[358396346,1745064634102,-500.0,0.00021917,2]
[358396347,1745064634111,-500.0,0.00021917,2]
[358396348,1745064634120,-500.0,0.00021917,2]
[358396349,1745064634129,-646.85,0.00021917,2]
[358396350,1745064634138,-500.0,0.00021917,2]
[358396351,1745064634147,-500.0,0.00021917,2]
[358396352,1745064634157,-500.0,0.00021917,2]
[358396353,1745064634166,-496.00563394,0.00021917,2]
[358396354,1745064634175,-500.0,0.00021917,2]
[358396355,1745064634185,-1191.1,0.00021917,2]
[358396356,1745064634194,-500.0,0.00021917,2]
[358396357,1745064634203,-500.0,0.00021917,2]
[358396358,1745064634213,-194.83028064,0.00021917,2]
[358396359,1745064634224,-624.54,0.00021917,2]
[358396360,1745064634234,-500.0,0.00021917,2]
[358396361,1745064634243,-519.14,0.00021917,2]
[358396362,1745064634254,-500.0,0.00021917,2]
[358396363,1745064634263,-1000.0,0.00021917,2]
[358396364,1745064634273,-500.0,0.00021917,2]
[358396365,1745064634283,-500.0,0.00021917,2]
[358396366,1745064634293,-500.0,0.00021917,2]
[358396367,1745064634303,-500.0,0.00021917,2]
[358396368,1745064634312,-500.0,0.00021917,2]
[358396369,1745064634322,-500.0,0.00021917,2]
[358396370,1745064634332,-500.0,0.00021917,2]
[358396371,1745064634341,-500.0,0.00021917,2]
[358396372,1745064634351,-500.0,0.00021917,2]
[358396373,1745064634360,-500.0,0.00021917,2]
[358396374,1745064634370,-500.0,0.00021917,2]
[358396375,1745064634380,-500.0,0.00021917,2]
[358396376,1745064634390,-1093.57,0.00021917,2]
[358396377,1745064634400,-478.2575071,0.00021917,2]
[358396378,1745064634410,-500.0,0.00021917,2]
[358396379,1745064634420,-500.0,0.00021917,2]
[358396380,1745064634429,-500.0,0.00021917,2]
[358396381,1745064634439,-500.0,0.00021917,2]
[358396382,1745064634448,-581.66,0.00021917,2]
[358396383,1745064634458,-500.0,0.00021917,2]
[358396384,1745064634468,-500.0,0.00021917,2]
[358396385,1745064634477,-500.0,0.00021917,2]
[358396386,1745064634487,-500.0,0.00021917,2]
[358396387,1745064634497,-500.0,0.00021917,2]
[358396388,1745064634506,-660.83,0.00021917,2]
[358396389,1745064634516,-500.0,0.00021917,2]
[358396390,1745064634525,-500.0,0.00021917,2]
[358396391,1745064634535,-500.0,0.00021917,2]
[358396392,1745064634544,-500.0,0.00021917,2]
[358396393,1745064634553,-500.0,0.00021917,2]
[358396394,1745064634563,-329.64322306,0.00021917,2]